Cogmind - Beta 11.2 @@@ ROGUE MODE // 2023.02.27 @ 17:51:37 Player: Delta Epsilon Result: Self-destructed Performance ------------- Evolutions (1) 500 Regions Visited (2) 400 Robots Destroyed (53) 265 Value Destroyed (1362) 1362 Prototype IDs (1) 20 Alien Tech Used (0) 0 Bonus (35) 35 TOTAL SCORE: 2582 Bonus ------- High Alert Combat Kills 35 Cogmind --------- Core Integrity 162/400 Matter 279/300 Energy 125/125 System Corruption 2% Temperature Cool (0) Movement Treading (160) Location -9/Materials Parts ------- > --- POWER (1) -------- Light Ion Engine > --- PROPULSION (2) --- Improved Treads Improved Treads > --- UTILITY (3) ------ Small Storage Unit > --- WEAPON (3) ------- Advanced Beam Cannon Advanced Beam Cannon Advanced Beam Cannon > --- INVENTORY (8) ---- Small Laser Small Laser Particle Gun Grenade Launcher Mining Laser Mining Laser Peak State ------------ > --- POWER ------------ Light Ion Engine > --- PROPULSION ------- Improved Treads Improved Treads > --- UTILITY ---------- Small Storage Unit Light Armor Plating Hardened Light Armor Plating > --- WEAPON ----------- Improved Light Cannon Improved Light Cannon Improved Light Cannon > --- INVENTORY -------- Small Laser Small Laser Particle Gun Advanced Beam Cannon Advanced Beam Cannon Grenade Launcher Mining Laser Mining Laser [Rating: 16] Favorites ----------- Power Light Ion Engine Engine Light Ion Engine Propulsion Light Treads Treads Light Treads Utility Small Storage Unit Storage Small Storage Unit Processor Improved Targeting Computer Protection Hardened Light Armor Plating Weapon Improved Light Cannon Energy Gun Small Laser Energy Cannon Advanced Beam Cannon Ballistic Cannon Improved Light Cannon Special Weapon Mining Laser Build | -11 -10 -9 ------- Run | Scr Mat Mat Slots Evolved 2 | . . 2 Power . | . . . Propulsion . | . . . Utility 1 | . . 1 Weapon 1 | . . 1 Parts Attached 45 | 5 20 20 Power 3 | 1 1 1 Engine 3 | 1 1 1 Core . | . . . Reactor . | . . . Propulsion 10 | 2 6 2 Treads 10 | 2 6 2 Leg . | . . . Wheel . | . . . Hover . | . . . Flight . | . . . Utility 4 | 1 1 2 Device . | . . . Storage 1 | 1 . . Processor 1 | . . 1 Hackware . | . . . Protection 2 | . 1 1 Artifact . | . . . Weapon 28 | 1 12 15 Energy Gun 13 | 1 10 2 Energy Cannon 4 | . . 4 Ballistic Gun . | . . . Ballistic Cannon 9 | . . 9 Launcher . | . . . Special Weapon 2 | . 2 . Impact Weapon . | . . . Slashing Weapon . | . . . Piercing Weapon . | . . . Special Melee Weapon . | . . . Unidentified Prototypes 1 | . . 1 Parts Lost 8 | . 3 5 Power 1 | . . 1 Propulsion 1 | . 1 . Utility 3 | . . 3 Weapon 3 | . 2 1 Highest Loss Streak 2 | . 1 2 To Critical Strikes . | . . . Average Slot Usage (%) 75 | . 69 80 Engine 8 | . 5 10 Treads 22 | . 23 22 Storage 12 | . 14 11 Protection 6 | . 2 9 Energy Gun 7 | . 12 3 Energy Cannon 2 | . . 4 Ballistic Cannon 9 | . . 18 Special Weapon 4 | . 9 . Naked Turns . | . . . Heaviest Build 28 | 10 15 28 Greatest Support 46 | 40 40 46 Greatest Overweight (x) 2 | 2 2 . Average Overweight (x) . | . . . Largest Inventory Capacity 8 | 8 8 8 Average Capacity 7 | 7 8 8 Most Carried 8 | 2 6 8 Average Carried 5 | . 3 7 Final Capacity 8 | 8 8 8 Final Carried 6 | 2 4 6 Class Distribution -------------------- 73% | Mutant 15% | Tank 10% | Gunner Dominant Class ---------------- Mutant | -10/Materials Mutant | -9/Materials Resources | -11 -10 -9 ----------- Run | Scr Mat Mat Matter Collected 1525 | 189 197 1139 Remotely . | . . . Salvage Created 1333 | . 447 886 Parts 90 | . 35 55 Haulers Intercepted 6 | . 1 5 Recyclers Shooed 1 | . . 1 Parts Field Recycled . | . . . Retrieved Matter . | . . . Parts Self-Destructed . | . . . Prevented . | . . . Kills | -11 -10 -9 ------- Run | Scr Mat Mat Combat Hostiles Destroyed 39 | . 14 25 Melee 5 | . 2 3 Guns 13 | . 11 2 Cannons 20 | . . 20 Classes Destroyed 10 | . 4 6 Worker 1 | . . 1 Builder 1 | . . 1 Hauler 6 | . 1 5 Recycler 2 | . . 2 Operator 1 | . . 1 Watcher 3 | . 1 2 Swarmer 9 | . 6 3 Grunt 22 | . 8 14 Brawler 1 | . . 1 Sentry 7 | . . 7 Best Kill Streak 5 | . 3 5 Combat Bots Only 4 | . 3 4 Max Kills in Single Turn 1 | . 1 1 Gunslinging . | . . . Exploded . | . . . Melee 1 | . 1 1 Uniques/NPCs Destroyed . | . . . Combat | -11 -10 -9 -------- Run | Scr Mat Mat Damage Taken 4273 | . 2935 1338 Core 1113 | . 875 238 Absorbed by Shields . | . . . Core Remaining (%) 1048 | 100 1996 . Volleys Fired 286 | 7 166 113 Largest 3 | 1 2 3 Hottest 204 | 50 200 204 Shots Fired 506 | 7 220 279 Gun 210 | 7 189 14 Cannon 265 | . . 265 Launcher . | . . . Special 31 | . 31 . Kinetic 238 | . . 238 Thermal 268 | 7 220 41 Explosive . | . . . Electromagnetic . | . . . Robot Hit Streak 26 | . 26 15 Robot Miss Streak 5 | . 2 5 Penetration Max . | . . . Secondary Targets . | . . . Shots Hit Robots 350 | . 174 176 Core Hits 168 | . 101 67 Critical Kills . | . . . Critical Parts Destroyed . | . . . Critical Strikes 11 | . 1 10 Burn 1 | . 1 . Blast 10 | . . 10 Melee Attacks . | . . . Impact . | . . . Slashing . | . . . Piercing . | . . . Sneak Attacks . | . . . Combat Hostiles . | . . . Follow-up Attacks . | . . . Damage Inflicted 5946 | . 2180 3766 Guns 1837 | . 1732 105 Cannons 3598 | . . 3598 Explosions . | . . . Melee . | . . . Ramming 103 | . 40 63 Kinetic 3126 | . . 3126 Thermal 2717 | . 2140 577 Explosive . | . . . Electromagnetic . | . . . Impact . | . . . Slashing . | . . . Piercing . | . . . Highest Corruption 2 | . . 2 Average Corruption 2 | . . 2 Corruption Purged . | . . . Corruption Blocked . | . . . Effects 29 | . . 29 Message Errors 8 | . . 8 Matter Fused 9 | . . 9 Heat Flow Errors 2 | . . 2 Energy Discharges 1 | . . 1 Parts Rejected 2 | . . 2 Data Loss (minor) 3 | . . 3 Misfires 2 | . . 2 Alerts 2 | . . 2 Overload Shots . | . . . Overflow Damage 71 | . . 71 Projectiles 69 | . . 69 Explosions . | . . . Melee 2 | . . 2 Knockbacks 25 | . 2 23 Impact 2 | . 2 . Kinetic 22 | . . 22 Secondary 1 | . . 1 Self-Inflicted Damage . | . . . Shots . | . . . Rammed 31 | . 14 17 Targets Rammed 37 | . 16 21 Kicked . | . . . Crushed 6 | . 2 4 Highest Temperature 316 | 30 316 147 Average Temperature 67 | 14 97 33 Received Heat Transfer 2157 | . 1557 600 Effects 3 | . 3 . Energy Bleed 1 | . 1 . Interference 2 | . 2 . Siege Activations . | . . . Robots Corrupted . | . . . Combat Hostiles . | . . . Parts Fried . | . . . Impact Corruptions 1 | . . 1 Robots Melted 1 | . 1 . Combat Hostiles 1 | . 1 . Parts Melted 7 | . 7 . Heat Transferred 6068 | . 4957 1111 Parts Sabotaged . | . . . Parts Stolen . | . . . Parts Stripped . | . . . Power Chain Reactions . | . . . Missiles Intercepted . | . . . Alert | -11 -10 -9 ------- Run | Scr Mat Mat Peak Influence 462 | . 165 462 Initial 27 | . . 27 Average 179 | . 65 290 Maximum Alert Level 2 | . . 2 Low Security (%) 61 | 100 100 26 Level 1 23 | . . 45 Level 2 14 | . . 28 Level 3 . | . . . Level 4 . | . . . Level 5 . | . . . High Security . | . . . Max Security . | . . . Squads Dispatched 7 | . 3 4 Investigation 5 | . 2 3 Extermination . | . . . Reinforcement 2 | . 1 1 Assault . | . . . Garrison . | . . . Intercept . | . . . Searches Triggered . | . . . Construction Impeded . | . . . Haulers Reinforced . | . . . Active Scanning Responses . | . . . Cargo Convoy Interrupts . | . . . Stealth | -11 -10 -9 --------- Run | Scr Mat Mat Distress Signals 4 | . 1 3 Communications Jammed . | . . . Distress Signals . | . . . Times Spotted 97 | . 41 56 Peak Tracking Total 6 | . 6 5 Tactical Retreats 15 | . 5 10 Traps | -11 -10 -9 ------- Run | Scr Mat Mat Traps Triggered 7 | . 3 4 Indirectly . | . . . Trap Hack Attempts . | . . . Triggered . | . . . Disarmed . | . . . Reprogrammed . | . . . Reused . | . . . Traps Extracted . | . . . Installed . | . . . Triggered . | . . . Machines | -11 -10 -9 ---------- Run | Scr Mat Mat Machines Disabled 4 | . . 4 Max in Single Turn 1 | . . 1 Machines Sabotaged . | . . . Garrisons Compromised . | . . . Overloaded Fab Kills . | . . . Hacking | -11 -10 -9 --------- Run | Scr Mat Mat Machines Accessed 1 | . 1 . Terminals . | . . . Fabricators . | . . . Repair Stations . | . . . Recycling Units 1 | . 1 . Scanalyzers . | . . . Garrison Access . | . . . Total Hacks 3 | . 3 . Successful 1 | . 1 . Failed 2 | . 2 . Catastrophic . | . . . Database Lockouts . | . . . Manual . | . . . Terminals . | . . . Fabricators . | . . . Repair Stations . | . . . Recycling Units 3 | . 3 . Scanalyzers . | . . . Garrison Access . | . . . Terminal Hacks . | . . . Fabricator Hacks . | . . . Repair Station Hacks . | . . . Recycling Unit Hacks 1 | . 1 . Retrieve Components 1 | . 1 . Scanalyzer . | . . . Garrison Access Hacks . | . . . Unauthorized Hacks . | . . . Terminals . | . . . Fabricators . | . . . Repair Stations . | . . . Recycling Units . | . . . Scanalyzers . | . . . Garrison Access . | . . . Data Cores Recovered 1 | . . 1 Used . | . . . Hacking Detections . | . . . Full Trace Events . | . . . Feedback Events . | . . . Feedback Blocked . | . . . Robot Schematics Acquired . | . . . Robots Built . | . . . Authchips . | . . . Time . | . . . Total Robot Build Rating . | . . . Part Schematics Acquired . | . . . Parts Built . | . . . Authchips . | . . . Time . | . . . Total Part Build Rating . | . . . Parts Repaired . | . . . Time . | . . . Parts Recycled . | . . . Recycled Matter . | . . . Retrieved Matter . | . . . Retrieved Components 9 | . 9 . Parts Scanalyzed . | . . . Part Schematics Acquired . | . . . Parts Damaged . | . . . Bothacking | -11 -10 -9 ------------ Run | Scr Mat Mat Used RIF Installer . | . . . Robots Hacked . | . . . Non-combat . | . . . Combat . | . . . Robot Hacks Applied . | . . . Relay Couplers Released . | . . . Fabnet Peak Effective % . | . . . Robots Rewired . | . . . Allies Hacked . | . . . Hacks Repelled . | . . . Allies | -11 -10 -9 -------- Run | Scr Mat Mat Total Allies . | . . . Largest Group . | . . . Highest-Rated Group . | . . . Highest-Rated Ally . | . . . Total Orders . | . . . Ally Attacks . | . . . Total Damage . | . . . Kills . | . . . Allies Corrupted . | . . . Allies Melted . | . . . Intel | -11 -10 -9 ------- Run | Scr Mat Mat Robot Analysis Total . | . . . Derelict Logs Recovered . | . . . Drone Launches . | . . . Drone Recoveries . | . . . Exploration | -11 -10 -9 ------------- Run | Scr Mat Mat Turns Passed 5978 | 167 2718 3093 Spaces Moved 2794 | 87 1174 1533 Core 12 | 11 1 . Treads 2782 | 76 1173 1533 Legs . | . . . Wheels . | . . . Hover . | . . . Flight . | . . . Fastest Speed 50 | 50 150 160 Average Speed 159 | 147 159 160 Slowest Speed 160 | 160 160 160 Overloaded Moves . | . . . Propulsion Burnouts . | . . . Robots Hopped . | . . . Cave-ins Triggered . | . . . Exploration Rate (%) 62 | 6 97 84 Regions Visited 2 Branch Regions . Pre-discovered Areas . | . . . Known Exits Taken . | . . . Unknown Exits Taken 2 | 1 1 . Scrap Searched . | . . . Spaces Dug 5 | . 5 . Terrain Destroyed 16 | . 5 11 Melee . | . . . Projectile 16 | . 5 11 AOE . | . . . Terrain Rammed . | . . . Walls Destroyed . | . . . Machines Disabled . | . . . Actions | -11 -10 -9 --------- Run | Scr Mat Mat Total 3763 | 117 1725 1921 Wait 572 | 17 334 221 Move 2792 | 86 1173 1533 Hop . | . . . Pick Up 11 | 1 3 7 Fast Attach 19 | 5 8 6 Attach 17 | . 12 5 Detach 13 | 1 12 . Swap 9 | . . 9 Drop 7 | . 1 6 Fire 286 | 7 166 113 Melee . | . . . Ram . | . . . Kick . | . . . Crush 37 | . 16 21 Escape Stasis . | . . . Rewire . | . . . Trap . | . . . Miscellaneous . | . . . Route ------- -11/Scrapyard -10/Materials (discovered 5 exits: [*Mat x3] / [*Min x2]) -9/Materials (discovered 4 exits: [*Mat x2] / [*Min x2]) History --------- Turn | Location | Event 22 | -11/Scrapyard | Discovered new exit (range 16) 168 | -11/Scrapyard | Entered Materials 312 | -10/Materials | Build established: Mutant 398 | -10/Materials | Discovered new exit (range 16) 684 | -10/Materials | Discovered new exit (range 5) 1179 | -10/Materials | Discovered new exit (range 15) 1343 | -10/Materials | Discovered new exit (range 15) 1548 | -10/Materials | Discovered new exit (range 16) 2886 | -10/Materials | Entered another Materials area 2886 | -9/Materials | Evolved 2 slots: Utility x1, Weapon x1 3263 | -9/Materials | Discovered new exit (range 13) 3407 | -9/Materials | Discovered new exit (range 2) 3439 | -9/Materials | Build established: Tank 4201 | -9/Materials | Discovered new exit (range 5) 4340 | -9/Materials | Build established: Mutant 4371 | -9/Materials | Discovered new exit (range 9) 4869 | -9/Materials | Core integrity fell below 50% 5796 | -9/Materials | Build established: Gunner 5979 | -9/Materials | Self-destructed Last Messages --------------- 05630_ K-01 Serf cleans the Matter Filter. 05656_ Acquired 4 matter. 05660_ Acquired 1 matter. 05672_ System corrupted: Component data lost. 05679_ Destroyed Lgt. Treads. 05706_ K-01 Serf cleans the Electrolysis Chamber. XEEF4YX8QQ8X2OO4&2MIIT1RS8CNXU 05717_ K-01 Serf cleans the Electrolysis Chamber. 05814_ System corrupted: Energy discharge (-38). 05825_ K-01 Serf cleans the Electrolysis Chamber. 05858_ A-02 Transporter heat damages Med. Storage Unit. 05869_ A-02 Transporter heat short circuits Transport Network Coupler. 05870_ Acquired 3 matter. 05873_ A-02 Transporter heat spikes uncontrollably. 05876_ System corrupted: Heat flow error (+170). 05877_ A-02 Transporter heat damages Med. Storage Unit. 05962_ Acquired 11 matter. 05965_ Acquired 2 matter. 05969_ System corrupted: Matter fused (-5). 05972_ K-01 Serf cleans the Electrolysis Chamber. Map ----- +----------------------------------------------------+ | # # "T" #### ########### """"" # | | # + """ ####+####??????# """"" # """ | | # # ######## # % #??????# """"" + """ | | # # ###????# # "" #??????# """""% # """ | | # # # ??# #%"Y ]]%#??????# #?? | | # # # """ # # " ]%#??????# ^ #???? | | ###### # """ %+ + ! ]%#??###?# """"% #?????? | | ?????# # """ # ###%##+##### ### """"" #?????? | | ?????# # ??# ###### ## # """"% #?????? | | ?????# # /????# #????# ## =] # """"" ####### | | ????## ##?????# #????# ##! !] # """"" | | ????## ##?????# #????# + ] # """"" | | ???###+######?# #????#### # """"" """ | | ???# ### ###???#?# # """ | | ???# # ##########+### """ | | ???# # | | ???# %+ ! | | ???# %% # | | ???# # ####### #### % ########### | | ???# #######?????# #??#! !#?????????? | | ???# #???????????# #??#! !#?????????? | | ???# #???????????# #??##!!!!##?????????? | | ???###################### #???######??????????? | | ????????# #?????????????? ????? | | ????????# #?????????????? ?#### | | ????????# a @% ###############+## | | ????????# r | | ????????# % | | ????????## "" """ " " """ """ """ | | ?????????# "" """ """ """ """ """ ##" | | ?????????# "T """ """ """ """ """ ##" ! | | ?????????# "" k ##""" | | ?????????# "" o ##### | | ?????????# """ """ t""" """ """ ## | | ?????????# """ """ """ """ """ # " | | ?????????# """ """ """ """ %""" # " | | ?????????# + " | | ?????????# % # | | ?????????# ########+####+##########+## /%=# " | | ?????????# ????????????? #??# ##==%## " | | ?????????# ?????????????????# * ##= [## " | | ?????????# ??????????????????# ## = ## | | ?????????# ??????????????????# + ##### | | ?????????# ???????????????????# """ ## = # | | ?????????# ???????????????????# """"" #### # | | ????????? ????????????????????# """"" #??# # " | | ??????????????????????????????# ?"""" #??# # " | | ??????????????????????????????????"" #??# #!% " | | ???????????????????????#################### ##+## | | ???????????????????????# ==#? | +----------------------------------------------------+ Best States ------------- Heat Dissipation 28 Energy Generation 10 Energy Capacity 125 Matter Stores 300 Matter Capacity 300 Sight Range 16 Terrain Scan Density 10 Armor Coverage 300 Evasion (%) 40 Targeting Accuracy 6 Recoil Reduction 2 Item Schematics ----------------- None Robot Schematics ------------------ None Fabricated ------------ Nothing Alien Tech Used ----------------- None Achievements -------------- None Challenges ------------ None Game ------ Seed BlastCarbideFlail Manual? 0 Play Time 00:54:29 Cumulative 111.4 hours Start 2023.02.26 @ 07:51:25 End 2023.02.27 @ 17:51:37 Sessions 5 Manual Loads 0 Difficulty Rogue Special Mode None Game No. 73 Rogue 73 Adventurer 0 Explorer 0 Win Type - Total 1 Types 0/0/1/0/0/0/0/0/0 Lore% 52 Gallery% 65 Achievement% 52 Wizard Run 0 Options --------- ASCII 1 Keyboard 1 Movement Numpad Keybinds 0 Fullscreen 0 Font 16/Terminus Map View 76x50 Tactical HUD 1 Map Filters NONE Filters NONE Steam 1 RUN: 909f0928-0440-40f3-a958-9832bcace09b